[Event "GER-ch Youth U14w 2019"]
[Site "Willingen"]
[Date "2019.06.14"]
[Round "8.4"]
[White "Peglau, Mirjam"]
[Black "Yue, Qizhou"]
[Result "1-0"]
[ECO "E46"]
[WhiteElo "1746"]
[BlackElo "1840"]
[Annotator "NA"]
[PlyCount "125"]
[EventDate "2019.06.07"]
[EventType "swiss"]
[EventRounds "9"]
[EventCountry "GER"]
[SourceTitle "playchess.com"]
[Source "ChessBase"]
[SourceQuality "1"]
[TimeControl "40/5400+30:1800+30"]

1. d4 {[%emt 0:00:00]} Nf6 {[%emt 0:00:00]} 2. c4 {[%emt 0:00:00]} e6 {[%emt 0:00:00]} 3. Nc3 {[%emt 0:00:00]} Bb4 {[%emt 0:00:00]} 4. e3 {[%emt 0:00:00]} O-O {[%emt 0:00:07]} 5. Nge2 {[%emt 0:00:00]} Re8 {[%emt 0:00:57]} 6. a3 {[%emt 0:00:10]} Bf8 {[%emt 0:00:13]} 7. Bd2 {[%emt 0:02:17]} d6 {[%emt 0:00:42]} 8. Ng3 {[%emt 0:01:37]} Nc6 {[%emt 0:06:44]} 9. Be2 {[%emt 0:00:51]} e5 {[%emt 0:01:00]} 10. d5 {[%emt 0:01:10]} Ne7 {[%emt 0:00:50]} 11. O-O {[%emt 0:00:51]} Nd7 {[%emt 0:17:36]} 12. e4 {[%emt 0:01:06]} a5 {[%emt 0:01:21]} 13. Qc2 {[%emt 0:02:39]} g6 {[%emt 0:04:35]} 14. b4 {[%emt 0:02:34]} Bg7 {[%emt 0:05:08]} 15. Nb5 {[%emt 0:06:43]} b6 {[%emt 0:01:45]} 16. Be3 {[%emt 0:10:08]} f5 {[%emt 0:06:05]} 17. exf5 {[%emt 0:09:09]} e4 {[%emt 0:02:39]} 18. Rac1 {[%emt 0:11:50]} gxf5 {[%emt 0:00:56]} 19. c5 {[%emt 0:01:23]} dxc5 {[%emt 0:04:16]} 20. bxc5 {[%emt 0:00:51]} Nxd5 {[%emt 0:02:16]} 21. cxb6 {[%emt 0:02:15]} N7xb6 {[%emt 0:14:11]} 22. Nxc7 {[%emt 0:01:00]} Qxc7 {[%emt 0:00:57]} 23. Qxc7 {[%emt 0:02:29]} Nxc7 {[%emt 0:00:11]} 24. Bxb6 {[%emt 0:00:47]} Na6 {[%emt 0:03:15]} 25. Bb5 {[%emt 0:03:34]} Rf8 {[%emt 0:02:15]} 26. a4 {[%emt 0:01:04]} Nb4 {[%emt 0:02:10]} 27. Ne2 {[%emt 0:04:10]} Ba6 {[%emt 0:01:56]} 28. Rc5 {[%emt 0:03:37]} Bxb5 {[%emt 0:01:53]} 29. Rxb5 {[%emt 0:00:40]} Rfb8 {[%emt 0:04:15]} 30. Rxa5 {[%emt 0:01:19]} Rxa5 {[%emt 0:00:44]} 31. Bxa5 {[%emt 0:00:02]} Nc6 {[%emt 0:00:20]} 32. Bc3 {[%emt 0:01:12]} Bxc3 {[%emt 0:02:06]} 33. Nxc3 {[%emt 0:00:01]} Rb3 {[%emt 0:00:46]} 34. Nb5 {[%emt 0:00:42]} Kf7 {[%emt 0:01:30]} 35. Ra1 {[%emt 0:00:38]} Ke6 {[%emt 0:00:30]} 36. h3 {[%emt 0:01:15]} Ke5 {[%emt 0:03:31]} 37. Rc1 {[%emt 0:01:07]} Ne7 {[%emt 0:02:26]} 38. Rc5+ {[%emt 0:00:32]} Kf6 {[%emt 0:01:11]} 39. Rc1 {[%emt 0:06:07]} f4 {[%emt 0:01:43]} 40. Rc4 {[%emt 0:04:37]} Rb1+ {[%emt 0:01:45]} 41. Kh2 {[%emt 0:30:01]} Ke5 {[%emt 0:32:05]} 42. Rc5+ {[%emt 0:01:56]} Kf6 {[%emt 0:00:30]} 43. Nc3 {[%emt 0:10:12]} Re1 {[%emt 0:01:05]} 44. a5 {[%emt 0:00:34]} e3 {[%emt 0:01:38]} 45. fxe3 {[%emt 0:01:32]} fxe3 {[%emt 0:00:10]} 46. Rc4 {[%emt 0:05:58]} Nf5 {[%emt 0:02:11]} 47. Ra4 {[%emt 0:00:00]} Rc1 {[%emt 0:00:00]} 48. Ne2 {[%emt 0:00:00]} Rc2 {[%emt 0:00:00]} 49. a6 {[%emt 0:00:00]} Rc8 {[%emt 0:00:00]} 50. a7 {[%emt 0:00:00]} Ra8 {[%emt 0:00:00]} 51. Nc3 {[%emt 0:00:00]} Ke5 {[%emt 0:00:00]} 52. Re4+ {[%emt 0:00:00]} Kd6 {[%emt 0:00:00]} 53. g4 {[%emt 0:00:00]} Ne7 {[%emt 0:00:00]} 54. Nb5+ {[%emt 0:00:00]} Kc6 {[%emt 0:00:00]} 55. Rxe7 {[%emt 0:00:00]} Kxb5 {[%emt 0:00:00]} 56. Kg2 {[%emt 0:00:00]} Kc4 {[%emt 0:00:00]} 57. Kf3 {[%emt 0:00:00]} Kd4 {[%emt 0:00:00]} 58. Rd7+ {[%emt 0:00:00]} Kc5 {[%emt 0:00:00]} 59. Kxe3 {[%emt 0:00:00]} h6 {[%emt 0:00:00]} 60. Kf4 {[%emt 0:00:00]} Kc6 {[%emt 0:00:00]} 61. Rf7 {[%emt 0:00:00]} Kb6 {[%emt 0:00:00]} 62. Kf5 {[%emt 0:00:00]} Rg8 {[%emt 0:00:00]} 63. Kf6 {[%emt 0:00:00] normal} 1-0

[Event "GER-ch Youth U14w 2019"]
[Site "Willingen"]
[Date "2019.06.14"]
[Round "8.5"]
[White "Schmidt, Pauline"]
[Black "Buchholz, Maja"]
[Result "0-1"]
[ECO "C02"]
[WhiteElo "1620"]
[BlackElo "1657"]
[Annotator "NA"]
[PlyCount "116"]
[EventDate "2019.06.07"]
[EventType "swiss"]
[EventRounds "9"]
[EventCountry "GER"]
[SourceTitle "playchess.com"]
[Source "ChessBase"]
[SourceQuality "1"]
[TimeControl "40/5400+30:1800+30"]

1. e4 {[%emt 0:00:00]} e6 {[%emt 0:00:00]} 2. d4 {[%emt 0:00:00]} d5 {[%emt 0:00:00]} 3. e5 {[%emt 0:00:00]} c5 {[%emt 0:00:00]} 4. c3 {[%emt 0:00:00]} Qb6 {[%emt 0:00:00]} 5. Nf3 {[%emt 0:00:18]} Nc6 {[%emt 0:00:00]} 6. a3 {[%emt 0:00:10]} Bd7 {[%emt 0:00:15]} 7. Be2 {[%emt 0:00:59]} cxd4 {[%emt 0:01:06]} 8. cxd4 {[%emt 0:00:08]} Nge7 {[%emt 0:00:17]} 9. b4 {[%emt 0:00:27]} Nf5 {[%emt 0:00:24]} 10. Be3 {[%emt 0:00:10]} a6 {[%emt 0:00:47]} 11. O-O {[%emt 0:01:43]} Be7 {[%emt 0:00:34]} 12. Nc3 {[%emt 0:02:00]} Qa7 {[%emt 0:01:43]} 13. b5 {[%emt 0:03:39]} axb5 {[%emt 0:01:31]} 14. Nxb5 {[%emt 0:00:18]} Qb8 {[%emt 0:01:16]} 15. a4 {[%emt 0:03:01]} f6 {[%emt 0:02:25]} 16. Rc1 {[%emt 0:06:21]} O-O {[%emt 0:01:07]} 17. Bf4 {[%emt 0:09:41]} Bb4 {[%emt 0:06:16]} 18. h3 {[%emt 0:27:08]} Ra5 {[%emt 0:12:14]} 19. Bh2 {[%emt 0:10:44]} Qa8 {[%emt 0:04:55]} 20. exf6 {[%emt 0:01:19]} Rxf6 {[%emt 0:11:52]} 21. Ra1 {[%emt 0:06:12]} Qe8 {[%emt 0:02:49]} 22. Kh1 {[%emt 0:02:49]} Na7 {[%emt 0:01:14]} 23. Qb3 {[%emt 0:08:12]} Qe7 {[%emt 0:06:16]} 24. g4 {[%emt 0:03:58]} Rh6 {[%emt 0:13:31]} 25. gxf5 {[%emt 0:03:59]} exf5 {[%emt 0:00:23]} 26. Qxd5+ {[%emt 0:00:25]} Kf8 {[%emt 0:07:09]} 27. Bc4 {[%emt 0:01:55]} Be6 {[%emt 0:01:00]} 28. Bd6 {[%emt 0:05:32]} Bxd6 {[%emt 0:01:41]} 29. Qxd6 {[%emt 0:00:13]} Bxc4 {[%emt 0:00:23]} 30. Rfe1 {[%emt 0:01:03]} Rxd6 {[%emt 0:00:51]} 31. Rxe7 {[%emt 0:00:41]} Kxe7 {[%emt 0:00:12]} 32. Nxd6 {[%emt 0:00:41]} Kxd6 {[%emt 0:00:07]} 33. Kh2 {[%emt 0:02:03]} Bd5 {[%emt 0:01:28]} 34. Nh4 {[%emt 0:00:23]} g6 {[%emt 0:00:29]} 35. Kg3 {[%emt 0:00:05]} Nc6 {[%emt 0:00:17]} 36. Kf4 {[%emt 0:01:08]} Nxd4 {[%emt 0:00:27]} 37. Kg5 {[%emt 0:00:18]} Nf3+ {[%emt 0:00:13]} 38. Nxf3 {[%emt 0:00:07]} Bxf3 {[%emt 0:00:05]} 39. Kh6 {[%emt 0:00:06]} b5 {[%emt 0:00:44]} 40. Kxh7 {[%emt 0:00:50]} Bh5 {[%emt 0:00:11]} 41. Kh6 {[%emt 0:30:26]} Rxa4 {[%emt 0:30:08]} 42. Rb1 {[%emt 0:00:13]} Kc5 {[%emt 0:00:11]} 43. Kg5 {[%emt 0:00:10]} Rc4 {[%emt 0:00:18]} 44. h4 {[%emt 0:01:12]} Rg4+ {[%emt 0:00:09]} 45. Kf6 {[%emt 0:00:19]} Rxh4 {[%emt 0:00:05]} 46. Kg5 {[%emt 0:00:25]} Rg4+ {[%emt 0:00:20]} 47. Kf6 {[%emt 0:00:10]} Rf4 {[%emt 0:00:28]} 48. Rc1+ {[%emt 0:01:18]} Kb4 {[%emt 0:00:05]} 49. Rb1+ {[%emt 0:00:13]} Kc4 {[%emt 0:00:03]} 50. Rc1+ {[%emt 0:00:33]} Kd3 {[%emt 0:00:06]} 51. Rb1 {[%emt 0:01:13]} b4 {[%emt 0:00:05]} 52. Ke5 {[%emt 0:00:31]} Re4+ {[%emt 0:00:22]} 53. Kd5 {[%emt 0:00:05]} Kc2 {[%emt 0:00:10]} 54. Ra1 {[%emt 0:00:00]} b3 {[%emt 0:00:00]} 55. Ra5 {[%emt 0:00:00]} b2 {[%emt 0:00:00]} 56. Rc5+ {[%emt 0:00:00]} Kb1 {[%emt 0:00:00]} 57. Ra5 {[%emt 0:00:00]} Re2 {[%emt 0:00:00]} 58. f4 {[%emt 0:00:00]} Kc1 {[%emt 0:00:00] normal} 0-1

[Event "GER-ch Youth U14w 2019"]
[Site "Willingen"]
[Date "2019.06.14"]
[Round "8.6"]
[White "Heutling, Elina"]
[Black "Avetyan, Manan"]
[Result "1-0"]
[ECO "C70"]
[WhiteElo "1712"]
[BlackElo "1307"]
[Annotator "NA"]
[PlyCount "49"]
[EventDate "2019.06.07"]
[EventType "swiss"]
[EventRounds "9"]
[EventCountry "GER"]
[SourceTitle "playchess.com"]
[Source "ChessBase"]
[SourceQuality "1"]
[TimeControl "40/5400+30:1800+30"]

1. e4 {[%emt 0:00:00]} e5 {[%emt 0:00:00]} 2. Nf3 {[%emt 0:00:00]} Nc6 {[%emt 0:00:00]} 3. Bb5 {[%emt 0:00:00]} a6 {[%emt 0:00:00]} 4. Ba4 {[%emt 0:00:00]} Nge7 {[%emt 0:00:07]} 5. O-O {[%emt 0:00:57]} g6 {[%emt 0:01:00]} 6. c3 {[%emt 0:03:48]} Bg7 {[%emt 0:04:13]} 7. d4 {[%emt 0:07:31]} exd4 {[%emt 0:05:49]} 8. cxd4 {[%emt 0:01:03]} b5 {[%emt 0:01:00]} 9. Bc2 {[%emt 0:00:52]} d6 {[%emt 0:01:35]} 10. h3 {[%emt 0:06:26]} O-O {[%emt 0:02:43]} 11. Be3 Bb7 {[%emt 0:16:56]} 12. Qd2 {[%emt 0:09:01]} f5 {[%emt 0:09:43]} 13. Bh6 {[%emt 0:03:13]} a5 {[%emt 0:19:51]} 14. Bxg7 {[%emt 0:02:14]} Kxg7 {[%emt 0:00:04]} 15. d5 {[%emt 0:09:46]} Nb4 {[%emt 0:02:59]} 16. Nd4 {[%emt 0:04:34]} Bc8 {[%emt 0:04:09]} 17. Nc3 {[%emt 0:11:38]} Nxc2 {[%emt 0:02:34]} 18. Qxc2 {[%emt 0:01:09]} b4 {[%emt 0:01:50]} 19. Ncb5 fxe4 {[%emt 0:08:06]} 20. Nxc7 {[%emt 0:03:00]} Kg8 {[%emt 0:09:25]} 21. Nxa8 {[%emt 0:00:52]} Ba6 {[%emt 0:01:25]} 22. Nc7 {[%emt 0:10:04]} Bxf1 {[%emt 0:00:05]} 23. Rxf1 {[%emt 0:01:01]} Qd7 {[%emt 0:01:35]} 24. Nce6 {[%emt 0:01:19]} Rc8 {[%emt 0:00:13]} 25. Qxe4 {[%emt 0:00:32] normal} 1-0

[Event "GER-ch Youth U14w 2019"]
[Site "Willingen"]
[Date "2019.06.14"]
[Round "8.7"]
[White "Bildat, Emilia"]
[Black "Wagner, Margarethe"]
[Result "1-0"]
[ECO "A20"]
[WhiteElo "1649"]
[BlackElo "1741"]
[Annotator "NA"]
[PlyCount "75"]
[EventDate "2019.06.07"]
[EventType "swiss"]
[EventRounds "9"]
[EventCountry "GER"]
[SourceTitle "playchess.com"]
[Source "ChessBase"]
[SourceQuality "1"]
[TimeControl "40/5400+30:1800+30"]

1. c4 {[%emt 0:00:00]} e5 {[%emt 0:00:00]} 2. g3 {[%emt 0:00:00]} Nf6 {[%emt 0:00:00]} 3. Bg2 {[%emt 0:00:00]} d5 {[%emt 0:00:00]} 4. cxd5 {[%emt 0:00:00]} Nxd5 {[%emt 0:00:02]} 5. Nc3 {[%emt 0:00:05]} Nb6 {[%emt 0:00:37]} 6. Nf3 {[%emt 0:00:10]} Nc6 {[%emt 0:00:27]} 7. O-O {[%emt 0:00:19]} Be7 {[%emt 0:00:57]} 8. a3 {[%emt 0:00:25]} Be6 {[%emt 0:03:58]} 9. b4 {[%emt 0:01:06]} a6 {[%emt 0:01:26]} 10. d3 {[%emt 0:02:02]} O-O {[%emt 0:05:41]} 11. Bb2 {[%emt 0:01:13]} f6 {[%emt 0:09:31]} 12. Rc1 {[%emt 0:01:41]} Rb8 {[%emt 0:04:48]} 13. Ne4 {[%emt 0:02:21]} Nd7 {[%emt 0:07:22]} 14. Nfd2 {[%emt 0:01:54]} Na7 {[%emt 0:04:38]} 15. Nb3 {[%emt 0:03:34]} b6 {[%emt 0:02:58]} 16. d4 {[%emt 0:02:53]} Kh8 {[%emt 0:06:14]} 17. d5 {[%emt 0:04:26]} Bf7 {[%emt 0:02:13]} 18. Bh3 {[%emt 0:09:31]} Nb5 {[%emt 0:02:32]} 19. Be6 {[%emt 0:01:36]} Nd6 {[%emt 0:04:32]} 20. Nxd6 {[%emt 0:06:16]} Bxd6 {[%emt 0:00:10]} 21. Qd3 {[%emt 0:00:32]} Qe7 {[%emt 0:05:26]} 22. Bh3 {[%emt 0:06:10]} Rfd8 {[%emt 0:03:34]} 23. e4 {[%emt 0:02:27]} Ra8 {[%emt 0:01:59]} 24. Nd2 {[%emt 0:01:46]} Nb8 {[%emt 0:03:18]} 25. Nc4 {[%emt 0:02:40]} Be8 {[%emt 0:01:38]} 26. Nxd6 {[%emt 0:02:30]} Qxd6 {[%emt 0:01:39]} 27. Qc3 {[%emt 0:01:22]} c6 {[%emt 0:02:34]} 28. Rfd1 {[%emt 0:01:25]} Qe7 {[%emt 0:02:02]} 29. Rd2 {[%emt 0:02:29]} Ra7 {[%emt 0:04:15]} 30. Rcd1 {[%emt 0:01:19]} cxd5 {[%emt 0:02:01]} 31. exd5 {[%emt 0:00:59]} Bd7 {[%emt 0:02:27]} 32. d6 {[%emt 0:05:30]} Qe8 {[%emt 0:01:30]} 33. Qc7 {[%emt 0:06:17]} Bxh3 {[%emt 0:07:09]} 34. Qxa7 {[%emt 0:00:33]} Qc6 {[%emt 0:00:05]} 35. Rd5 {[%emt 0:07:37]} Rc8 {[%emt 0:01:27]} 36. Qf7 {[%emt 0:04:48]} Qc4 {[%emt 0:02:49]} 37. d7 {[%emt 0:05:16]} Rd8 {[%emt 0:01:07]} 38. Qe8+ {[%emt 0:00:31] normal} 1-0

[Event "GER-ch Youth U14w 2019"]
[Site "Willingen"]
[Date "2019.06.14"]
[Round "8.8"]
[White "Zoellner, Bente"]
[Black "Kalina, Lena"]
[Result "1/2-1/2"]
[ECO "E77"]
[WhiteElo "1530"]
[BlackElo "1687"]
[Annotator "NA"]
[PlyCount "106"]
[EventDate "2019.06.07"]
[EventType "swiss"]
[EventRounds "9"]
[EventCountry "GER"]
[SourceTitle "playchess.com"]
[Source "ChessBase"]
[SourceQuality "1"]
[TimeControl "40/5400+30:1800+30"]

1. d4 {[%emt 0:00:00]} Nf6 {[%emt 0:00:00]} 2. c4 {[%emt 0:00:00]} g6 {[%emt 0:00:00]} 3. Nc3 {[%emt 0:00:00]} Bg7 {[%emt 0:00:00]} 4. e4 {[%emt 0:00:00]} d6 {[%emt 0:00:10]} 5. f4 {[%emt 0:00:27]} O-O {[%emt 0:01:29]} 6. Nf3 {[%emt 0:00:40]} c5 {[%emt 0:02:38]} 7. d5 {[%emt 0:00:34]} e6 {[%emt 0:03:13]} 8. dxe6 {[%emt 0:01:49]} fxe6 {[%emt 0:02:24]} 9. Bd3 {[%emt 0:07:05]} Nc6 {[%emt 0:04:45]} 10. O-O {[%emt 0:03:33]} Nh5 {[%emt 0:15:02]} 11. Ne2 {[%emt 0:06:21]} b6 {[%emt 0:12:55]} 12. a3 {[%emt 0:15:26]} Bb7 {[%emt 0:06:54]} 13. Rb1 {[%emt 0:05:08]} a5 {[%emt 0:02:24]} 14. Qe1 {[%emt 0:06:04]} a4 {[%emt 0:05:26]} 15. g4 {[%emt 0:10:22]} Nf6 {[%emt 0:01:03]} 16. Qh4 {[%emt 0:04:42]} Nd7 {[%emt 0:03:19]} 17. Qh3 {[%emt 0:07:17]} Na5 {[%emt 0:09:50]} 18. Ng5 {[%emt 0:04:37]} Rf6 {[%emt 0:12:30]} 19. Nxh7 {[%emt 0:07:50]} Rf7 {[%emt 0:01:06]} 20. Ng5 {[%emt 0:00:48]} Rf6 {[%emt 0:00:44]} 21. Qh7+ {[%emt 0:04:24]} Kf8 {[%emt 0:00:10]} 22. f5 {[%emt 0:01:09]} gxf5 {[%emt 0:03:59]} 23. exf5 {[%emt 0:01:52]} exf5 {[%emt 0:02:27]} 24. Rxf5 {[%emt 0:02:06]} Qe7 {[%emt 0:02:32]} 25. Rxf6+ {[%emt 0:02:03]} Nxf6 {[%emt 0:02:20]} 26. Qf5 {[%emt 0:01:08]} Bc8 {[%emt 0:01:53]} 27. Nh7+ {[%emt 0:01:05]} Ke8 {[%emt 0:02:21]} 28. Nxf6+ {[%emt 0:01:21]} Bxf6 {[%emt 0:00:45]} 29. Qg6+ {[%emt 0:01:07]} Kd8 {[%emt 0:00:48]} 30. Bf4 {[%emt 0:02:37]} Kc7 {[%emt 0:01:12]} 31. g5 {[%emt 0:02:06]} Be5 {[%emt 0:00:33]} 32. Qh7 {[%emt 0:00:59]} Qxh7 {[%emt 0:00:23]} 33. Bxh7 {[%emt 0:00:06]} Be6 {[%emt 0:00:39]} 34. Bxe5 {[%emt 0:01:07]} dxe5 {[%emt 0:00:04]} 35. Nc3 {[%emt 0:00:17]} Nxc4 {[%emt 0:00:45]} 36. Re1 {[%emt 0:00:38]} Rd8 {[%emt 0:00:44]} 37. g6 {[%emt 0:00:38]} Kc6 {[%emt 0:00:31]} 38. Kf2 {[%emt 0:00:42]} Bg8 {[%emt 0:00:22]} 39. Bxg8 {[%emt 0:00:29]} Rxg8 {[%emt 0:00:04]} 40. Rg1 {[%emt 0:00:05]} Nxb2 {[%emt 0:01:01]} 41. g7 {[%emt 0:30:46]} Nd3+ {[%emt 0:02:03]} 42. Ke3 {[%emt 0:00:00]} Nf4 {[%emt 0:02:06]} 43. h4 {[%emt 0:00:00]} b5 {[%emt 0:11:29]} 44. Rg5 {[%emt 0:00:00]} Ne6 {[%emt 0:04:40]} 45. Rg6 {[%emt 0:00:00]} Kd7 {[%emt 0:00:41]} 46. h5 {[%emt 0:00:00]} Rxg7 {[%emt 0:01:42]} 47. Nxb5 {[%emt 0:00:00]} Rxg6 {[%emt 0:04:57]} 48. hxg6 {[%emt 0:00:00]} Ke7 {[%emt 0:00:53]} 49. Ke4 {[%emt 0:00:00]} Kf6 {[%emt 0:01:19]} 50. Nc3 {[%emt 0:00:00]} Kxg6 {[%emt 0:03:48]} 51. Nxa4 {[%emt 0:00:00]} Kf6 {[%emt 0:01:12]} 52. Nb6 {[%emt 0:00:00]} Ng5+ {[%emt 0:01:01]} 53. Ke3 {[%emt 0:00:00]} Ke6 {[%emt 0:00:28] normal} 1/2-1/2

[Event "GER-ch Youth U14w 2019"]
[Site "Willingen"]
[Date "2019.06.14"]
[Round "8.9"]
[White "Adelhardt, Lisa"]
[Black "Petersen, Sophie"]
[Result "1-0"]
[ECO "B23"]
[WhiteElo "1293"]
[BlackElo "1430"]
[Annotator "NA"]
[PlyCount "91"]
[EventDate "2019.06.07"]
[EventType "swiss"]
[EventRounds "9"]
[EventCountry "GER"]
[SourceTitle "playchess.com"]
[Source "ChessBase"]
[SourceQuality "1"]
[TimeControl "40/5400+30:1800+30"]

1. e4 {[%emt 0:00:00]} c5 {[%emt 0:00:00]} 2. Nc3 {[%emt 0:00:00]} d6 {[%emt 0:00:15]} 3. Bb5+ {[%emt 0:00:39]} Nd7 {[%emt 0:01:13]} 4. f4 {[%emt 0:01:15]} g6 {[%emt 0:01:10]} 5. Nf3 {[%emt 0:02:01]} Bg7 {[%emt 0:00:29]} 6. d3 {[%emt 0:00:30]} e6 {[%emt 0:03:21]} 7. Bd2 {[%emt 0:08:38]} Ne7 {[%emt 0:01:25]} 8. O-O {[%emt 0:02:59]} a6 {[%emt 0:01:14]} 9. Bxd7+ {[%emt 0:01:26]} Bxd7 {[%emt 0:06:23]} 10. Rb1 {[%emt 0:07:47]} O-O {[%emt 0:01:16]} 11. Qe1 {[%emt 0:06:16]} Rc8 {[%emt 0:05:00]} 12. Qg3 {[%emt 0:12:15]} Bc6 {[%emt 0:03:10]} 13. Qh3 {[%emt 0:08:44]} d5 {[%emt 0:09:44]} 14. e5 {[%emt 0:05:42]} Nf5 {[%emt 0:06:46]} 15. g4 {[%emt 0:21:26]} Nd4 {[%emt 0:08:33]} 16. Nxd4 {[%emt 0:09:46]} cxd4 {[%emt 0:00:18]} 17. Ne2 {[%emt 0:02:02]} Qb6 {[%emt 0:07:24]} 18. g5 {[%emt 0:02:42]} Rfd8 {[%emt 0:03:12]} 19. Ng3 {[%emt 0:04:08]} Be8 {[%emt 0:00:48]} 20. Rfc1 {[%emt 0:00:52]} Qb5 {[%emt 0:05:28]} 21. Nh1 {[%emt 0:00:45]} Qa4 {[%emt 0:01:55]} 22. b3 {[%emt 0:00:34]} Qxa2 {[%emt 0:03:44]} 23. Ra1 {[%emt 0:00:11]} Qb2 {[%emt 0:01:42]} 24. Bb4 {[%emt 0:00:35]} Rxc2 {[%emt 0:01:17]} 25. Rcb1 {[%emt 0:00:18]} Rxh2 {[%emt 0:09:47]} 26. Qxh2 {[%emt 0:00:27]} Qxh2+ {[%emt 0:00:28]} 27. Kxh2 {[%emt 0:00:04]} Bb5 {[%emt 0:00:39]} 28. Nf2 {[%emt 0:00:16]} h6 {[%emt 0:01:09]} 29. Be7 {[%emt 0:01:27]} Re8 {[%emt 0:01:39]} 30. gxh6 {[%emt 0:00:38]} Bxh6 {[%emt 0:00:18]} 31. Bg5 {[%emt 0:00:04]} Bg7 {[%emt 0:00:58]} 32. Rg1 {[%emt 0:00:53]} Rc8 {[%emt 0:03:39]} 33. Rac1 {[%emt 0:00:17]} Re8 {[%emt 0:00:34]} 34. Kg2 {[%emt 0:00:45]} Bf8 {[%emt 0:02:43]} 35. Bf6 {[%emt 0:00:29]} Bg7 {[%emt 0:00:22]} 36. Bxg7 {[%emt 0:00:29]} Kxg7 {[%emt 0:00:08]} 37. Kf3 {[%emt 0:00:29]} Rf8 {[%emt 0:01:39]} 38. Ke2 {[%emt 0:00:35]} Bc6 {[%emt 0:00:36]} 39. Ng4 {[%emt 0:00:17]} Rd8 {[%emt 0:00:54]} 40. Rh1 {[%emt 0:00:33]} Kf8 {[%emt 0:06:05]} 41. Rh8+ {[%emt 0:02:52]} Ke7 {[%emt 0:00:15]} 42. Rxd8 {[%emt 0:00:16]} Kxd8 {[%emt 0:00:09]} 43. Rh1 {[%emt 0:00:33]} Kc7 {[%emt 0:01:14]} 44. Kd2 {[%emt 0:03:04]} Kb6 {[%emt 0:00:29]} 45. Kc2 {[%emt 0:01:59]} Kb5 {[%emt 0:00:40]} 46. Rh7 {[%emt 0:03:43] normal} 1-0

[Event "GER-ch Youth U14w 2019"]
[Site "Willingen"]
[Date "2019.06.14"]
[Round "8.10"]
[White "Liu, Sijia Anna"]
[Black "Becker, Linda"]
[Result "1-0"]
[ECO "C17"]
[WhiteElo "1705"]
[BlackElo "1683"]
[Annotator "NA"]
[PlyCount "84"]
[EventDate "2019.06.07"]
[EventType "swiss"]
[EventRounds "9"]
[EventCountry "GER"]
[SourceTitle "playchess.com"]
[Source "ChessBase"]
[SourceQuality "1"]
[TimeControl "40/5400+30:1800+30"]

1. e4 {[%emt 0:00:00]} e6 {[%emt 0:00:00]} 2. d4 {[%emt 0:00:00]} d5 {[%emt 0:00:00]} 3. Nc3 {[%emt 0:00:00]} Bb4 {[%emt 0:00:00]} 4. e5 {[%emt 0:00:23]} c5 {[%emt 0:00:02]} 5. Bd2 {[%emt 0:00:50]} cxd4 {[%emt 0:02:57]} 6. Nb5 {[%emt 0:00:54]} Bc5 {[%emt 0:01:42]} 7. Qg4 {[%emt 0:03:11]} Bf8 {[%emt 0:08:41]} 8. Nd6+ {[%emt 0:03:54]} Bxd6 {[%emt 0:01:08]} 9. Qxg7 {[%emt 0:04:44]} Bxe5 {[%emt 0:00:07]} 10. Qxe5 {[%emt 0:00:36]} Qf6 {[%emt 0:00:48]} 11. Qxf6 {[%emt 0:04:26]} Nxf6 {[%emt 0:00:07]} 12. Nf3 {[%emt 0:01:05]} Nc6 {[%emt 0:00:38]} 13. O-O-O {[%emt 0:07:09]} Ne4 {[%emt 0:06:42]} 14. Be1 {[%emt 0:02:09]} e5 {[%emt 0:02:36]} 15. Nd2 {[%emt 0:02:37]} Be6 {[%emt 0:02:33]} 16. f3 {[%emt 0:03:48]} Nd6 {[%emt 0:02:01]} 17. Nb3 {[%emt 0:03:37]} b6 {[%emt 0:02:44]} 18. Bg3 {[%emt 0:04:48]} Nc4 {[%emt 0:05:17]} 19. Bxc4 {[%emt 0:03:23]} dxc4 {[%emt 0:03:19]} 20. Nd2 {[%emt 0:00:44]} O-O-O {[%emt 0:05:25]} 21. Rhe1 {[%emt 0:05:38]} Rd5 {[%emt 0:01:35]} 22. Nxc4 {[%emt 0:04:33]} f6 {[%emt 0:01:38]} 23. f4 {[%emt 0:03:25]} Bg4 {[%emt 0:11:39]} 24. Ne3 {[%emt 0:05:10]} Bxd1 {[%emt 0:06:47]} 25. Nxd5 {[%emt 0:00:23]} exf4 {[%emt 0:01:16]} 26. Bxf4 {[%emt 0:02:59]} Bh5 {[%emt 0:02:26]} 27. Nxf6 {[%emt 0:03:30]} Bg6 {[%emt 0:02:47]} 28. a3 {[%emt 0:02:43]} Kb7 {[%emt 0:01:35]} 29. Ne4 {[%emt 0:04:14]} Ka6 {[%emt 0:01:23]} 30. Nd6 {[%emt 0:01:15]} Rf8 {[%emt 0:01:02]} 31. g3 {[%emt 0:02:34]} b5 {[%emt 0:06:10]} 32. Re6 {[%emt 0:05:36]} Kb6 {[%emt 0:01:51]} 33. Kd2 {[%emt 0:05:48]} Kc5 {[%emt 0:04:24]} 34. Ne4+ {[%emt 0:04:33]} Bxe4 {[%emt 0:02:19]} 35. Rxe4 {[%emt 0:00:14]} Kd5 {[%emt 0:00:18]} 36. Re2 {[%emt 0:00:48]} Rf7 {[%emt 0:00:56]} 37. Kd3 {[%emt 0:01:40]} a5 {[%emt 0:02:22]} 38. Re8 {[%emt 0:01:44]} Rb7 {[%emt 0:01:48]} 39. Rg8 {[%emt 0:01:32]} Re7 {[%emt 0:04:24]} 40. Rg5+ {[%emt 0:00:52]} Ne5+ {[%emt 0:00:15]} 41. Rxe5+ {[%emt 0:05:43]} Rxe5 {[%emt 0:00:09]} 42. Bxe5 {[%emt 0:00:03]} Kxe5 {[%emt 0:00:08] normal} 1-0